lending/lending_fUSD_20250121
["ID","MTS","AMOUNT","RATE_DAILY","PERIOD"]
[349875458,1737473465328,-500.0,0.00021237,2]
[349875459,1737473465338,-325.76672045,0.00021237,2]
[349875460,1737473465348,-500.0,0.00021237,2]
[349875461,1737473465357,-500.0,0.00021237,2]
[349875462,1737473465368,-570.53,0.00021237,2]
[349875463,1737473465378,-500.0,0.00021237,2]
[349875464,1737473465388,-500.0,0.00021237,2]
[349875465,1737473465398,-500.0,0.00021237,2]
[349875466,1737473465408,-500.0,0.00021237,2]
[349875467,1737473465418,-500.0,0.00021237,2]
[349875468,1737473465428,-500.0,0.00021237,2]
[349875469,1737473465438,-561.49,0.00021237,2]
[349875470,1737473465449,-1015.68,0.00021237,2]
[349875471,1737473465459,-500.0,0.00021237,2]
[349875472,1737473465470,-185.41951669,0.00021237,2]
[349875473,1737473465480,-500.0,0.00021237,2]
[349875474,1737473465491,-500.0,0.00021238,2]
[349875475,1737473465501,-500.0,0.00021238,2]
[349875476,1737473465511,-519.55,0.00021238,2]
[349875477,1737473465521,-151.0,0.00021238,2]
[349875478,1737473465534,-151.0,0.00021238,2]
[349875479,1737473465544,-500.0,0.00021238,2]
[349875480,1737473465554,-500.0,0.00021238,2]
[349875481,1737473465564,-151.0,0.00021238,2]
[349875482,1737473465575,-151.0,0.00021238,2]
[349875483,1737473465585,-500.0,0.00021238,2]
[349875484,1737473465595,-151.0,0.00021238,2]
[349875485,1737473465606,-344.602991,0.00021238,2]
[349875486,1737473465616,-344.602991,0.00021238,2]
[349875487,1737473465626,-151.0,0.00021238,2]
[349875488,1737473465637,-500.0,0.00021238,2]
[349875489,1737473465646,-500.0,0.00021238,2]
[349875490,1737473465656,-151.0,0.00021238,2]
[349875491,1737473465666,-151.0,0.00021238,2]
[349875492,1737473465676,-152.18502,0.00021238,2]
[349875493,1737473465686,-156.3245,0.00021238,2]
[349875494,1737473465696,-151.0,0.00021238,2]
[349875495,1737473465707,-193.093762,0.00021238,2]
[349875496,1737473465716,-193.093762,0.00021238,2]
[349875497,1737473465726,-227.475144,0.00021238,2]
[349875498,1737473465736,-227.475144,0.00021238,2]
[349875499,1737473465746,-151.0,0.00021238,2]
[349875500,1737473465756,-151.0,0.00021238,2]
[349875501,1737473465766,-153.351525,0.00021238,2]
[349875502,1737473465776,-2292.673232,0.00021238,2]
[349875503,1737473465789,-151.0,0.00021238,2]
[349875504,1737473465799,-2292.673232,0.00021238,2]
[349875505,1737473465809,-581.396,0.00021253,2]
[349875506,1737473465820,-150.0,0.00021253,2]
[349875507,1737473465829,-636.0,0.00021253,2]
[349875508,1737473465839,-1864.0,0.00021253,2]
[349875509,1737473465849,-907.0,0.00021253,2]
[349875510,1737473465859,-781.0,0.00021253,2]
[349875511,1737473465869,-1261.0,0.00021253,2]
[349875512,1737473465879,-2948.0,0.00021253,2]
[349875513,1737473465890,-150.665,0.00021253,2]
[349875514,1737473465901,-552.834,0.00021253,2]
[349875515,1737473465911,-3984.0,0.00021253,2]
[349875516,1737473465922,-1106.0,0.00021253,2]
[349875517,1737473465932,-3902.0,0.00021253,2]
[349875518,1737473465942,-2018.0,0.00021253,2]
[349875519,1737473465953,-637.0,0.00021253,2]
[349875520,1737473465963,-152.519,0.00021253,2]
[349875521,1737473465973,-207.0,0.0002127,2]
[349875522,1737473465983,-205.0,0.0002127,2]
[349875523,1737473465992,-2611.03418797,0.00021279,2]
[349875524,1737473466003,-151.0,0.0002131,2]
[349875525,1737473466014,-151.0,0.0002131,2]
[349875526,1737473466025,-151.0,0.0002131,2]
[349875527,1737473466041,-151.0,0.00021312,2]
[349875528,1737473466051,-151.0,0.00021312,2]
[349875529,1737473466063,-150.0,0.00021312,2]
[349875530,1737473466073,-150.0,0.00021312,2]
[349875531,1737473466083,-150.0,0.00021312,2]
[349875532,1737473466094,-1000.0,0.00021319,2]
[349875533,1737473466105,-150.0,0.00021331,2]
[349875534,1737473466115,-150.0,0.00021331,2]
[349875535,1737473466126,-150.0,0.00021332,2]
[349875536,1737473466136,-150.0,0.00021344,2]
[349875537,1737473466146,-516.96,0.00021369,2]
[349875538,1737473466155,-1060.23,0.00021369,2]
[349875539,1737473466165,-798.17,0.00021369,2]
[349875540,1737473466175,-942.98,0.00021369,2]
[349875541,1737473466186,-2259.34,0.00021369,2]
[349875542,1737473466197,-594.95,0.00021369,2]
[349875543,1737473466207,-2519.97,0.00021369,2]
[349875544,1737473466218,-1308.03,0.00021369,2]
[349875545,1737473466227,-2381.77,0.00021369,2]
[349875546,1737473466238,-500.0,0.00021369,2]
[349875547,1737473466247,-1433.61,0.00021369,2]
[349875548,1737473466258,-1212.32,0.00021369,2]
[349875549,1737473466268,-2759.2,0.00021369,2]
[349875550,1737473466280,-3089.35,0.00021369,2]
[349875551,1737473466290,-1366.21,0.00021369,2]
[349875552,1737473466300,-1044.2,0.00021369,2]
[349875553,1737473466311,-500.0,0.00021369,2]
[349875554,1737473466322,-2875.08,0.00021369,2]
[349875555,1737473466333,-500.0,0.00021369,2]
[349875556,1737473466343,-500.0,0.00021369,2]
[349875557,1737473466353,-500.0,0.00021369,2]
[349875558,1737473466363,-500.0,0.00021369,2]
[349875559,1737473466373,-956.78,0.00021369,2]
[349875560,1737473466383,-500.0,0.00021369,2]
[349875561,1737473466394,-568.62,0.00021369,2]
[349875562,1737473466403,-2749.15,0.00021369,2]
[349875563,1737473466414,-363.77945564,0.00021371,2]
[349875564,1737473466424,-500.0,0.00021373,2]
[349875565,1737473466434,-500.0,0.00021373,2]
[349875566,1737473466443,-676.22,0.00021373,2]
[349875567,1737473466453,-227.475144,0.00021385,2]
[349875568,1737473466463,-227.475144,0.00021385,2]
[349875569,1737473466473,-150.0,0.00021395,2]
[349875570,1737473466483,-150.0,0.00021397,2]
[349875571,1737473466493,-369.21296296,0.00021397,2]
[349875572,1737473466503,-5881.8258836,0.000214,2]
[349875573,1737473466512,-5772.69165277,0.000214,2]
[349875574,1737473466523,-5128.38246902,0.000214,2]
[349875575,1737473466537,-1000.0,0.00021408,2]
[349875576,1737473466548,-1000.0,0.00021409,2]
[349875577,1737473466559,-2102.1,0.00021411,7]
[349875578,1737473466569,-2102.1,0.00021411,7]
[349875579,1737473466580,-500.0,0.00021411,2]
[349875580,1737473466592,-2186.55,0.00021411,2]
[349875581,1737473466602,-1085.09,0.00021411,2]
[349875582,1737473466613,-2730.73,0.00021411,2]
[349875583,1737473466623,-695.234373,0.00021411,2]
[349875584,1737473466634,-717.16,0.00021411,2]
[349875585,1737473466644,-1048.01,0.00021411,2]
[349875586,1737473466654,-643.95,0.00021411,2]
[349875587,1737473466665,-2281.5,0.00021411,2]
[349875588,1737473466675,-500.0,0.00021411,2]
[349875589,1737473466684,-3969.3,0.00021411,2]
[349875590,1737473466694,-690.17,0.00021411,2]
[349875591,1737473466705,-707.287074,0.00021411,2]
[349875592,1737473466716,-500.0,0.00021411,2]
[349875593,1737473466726,-151.0,0.00021411,2]
[349875594,1737473466736,-1201.35,0.00021411,2]
[349875595,1737473466745,-835.588947,0.00021411,2]
[349875596,1737473466755,-835.588947,0.00021411,2]
[349875597,1737473466764,-1823.94,0.00021411,2]
[349875598,1737473466774,-1013.43,0.00021411,2]
[349875599,1737473466786,-151.0,0.00021411,2]
[349875600,1737473466795,-1273.27,0.00021411,2]
[349875601,1737473466806,-3423.41,0.00021411,2]
[349875602,1737473466817,-2649.6,0.00021411,2]
[349875603,1737473466827,-3456.73,0.00021411,2]
[349875604,1737473466838,-500.0,0.00021411,2]
[349875605,1737473466848,-1434.78,0.00021411,2]
[349875606,1737473466858,-3690.04,0.00021411,2]
[349875607,1737473466868,-7080.07,0.00021411,2]
[349875608,1737473466878,-1249.4,0.00021411,2]
[349875609,1737473466888,-1727.92,0.00021411,2]
[349875610,1737473466899,-514.86278,0.00021411,2]
[349875611,1737473466908,-777.964969,0.00021411,2]
[349875612,1737473466918,-514.86278,0.00021411,2]
[349875613,1737473466928,-807.0,0.00021411,2]
[349875614,1737473466939,-1972.89,0.00021411,2]
[349875615,1737473466949,-777.964969,0.00021411,2]
[349875616,1737473466959,-151.0,0.00021411,2]
[349875617,1737473466970,-872.86,0.00021411,2]
[349875618,1737473466981,-1915.51,0.00021411,2]
[349875619,1737473466992,-2778.0,0.00021411,2]
[349875620,1737473467002,-1925.43,0.00021411,2]
[349875621,1737473467013,-1775.46,0.00021411,2]
[349875622,1737473467023,-151.40246118,0.00021414,2]
[349875623,1737473467038,-151.0,0.00021424,2]
[349875624,1737473467049,-153.027457,0.00021424,2]
[349875625,1737473467060,-193.093762,0.00021424,2]
[349875626,1737473467071,-193.093762,0.00021424,2]
[349875627,1737473467081,-255.0595119,0.00021448,2]
[349875628,1737473467091,-150.0,0.00021448,2]
[349875629,1737473467103,-5146.75447676,0.00021469,2]
[349875630,1737473467113,-301.45000873,0.00021473,2]
[349875631,1737473467123,-150.0,0.00021473,2]
[349875632,1737473467134,-150.0,0.00021474,2]
[349875633,1737473467144,-521.66,0.00021476,2]
[349875634,1737473467344,-369.21296296,0.00021479,2]
[349875635,1737473467355,-150.0,0.00021496,2]
[349875636,1737473467366,-151.0,0.00021499,2]
[349875637,1737473467375,-835.588947,0.00021499,2]
[349875638,1737473467384,-835.588947,0.00021499,2]
[349875639,1737473467394,-151.0,0.00021499,2]
[349875640,1737473467403,-514.86278,0.00021499,2]
[349875641,1737473467413,-777.964969,0.00021499,2]
[349875642,1737473467422,-514.86278,0.00021499,2]
[349875643,1737473467432,-777.964969,0.00021499,2]
[349875644,1737473467441,-151.0,0.00021499,2]
[349875645,1737473467452,-1003.17227936,0.000215,2]
[349875646,1737473467462,-2110.0,0.000215,2]
[349875647,1737473467471,-8562.78210843,0.000215,2]
[349875648,1737473467480,-675463.19260265,0.000215,15]
[349875649,1737473467771,-274.74263937,0.000215,15]
[349875650,1737473467785,-2018.78824655,0.000215,15]
[349875651,1737473467803,-22446.86890408,0.000215,15]
[349875652,1737473467819,-500.0,0.00019726,2]
[349875653,1737473467828,-11681.45869969,0.000215,15]
[349875654,1737473467840,-393.69097478,0.000215,15]
[349875655,1737473468380,-500.0,0.00019178,2]
[349875656,1737473468389,-344.30576614,0.00019178,2]
[349875657,1737473468451,-155.69423386,0.00019178,2]
[349875658,1737473468461,-311.865589,0.00019452,2]
[349875659,1737473468473,-188.134411,0.00019452,2]
[349875660,1737473468483,-334.0069778,0.00019452,2]
[349875661,1737473468917,-500.0,0.00019178,2]
[349875662,1737473468927,-165.9930222,0.00019452,2]
[349875663,1737473468937,-500.0,0.00019452,2]
[349875664,1737473468947,-500.0,0.00019726,2]
[349875665,1737473468957,-500.0,0.00019726,2]
[349875666,1737473468967,-286.636627,0.00019726,2]
[349875667,1737473468979,-213.363373,0.00019726,2]
[349875668,1737473468989,-171.436627,0.0002,2]
[349875669,1737473469014,-328.563373,0.0002,2]
[349875670,1737473469026,-417.21731257,0.0002,2]
[349875671,1737473469039,-283.64931443,0.0002,2]
[349875672,1737473469052,-216.35068557,0.0002,2]
[349875673,1737473469062,-500.0,0.0002,2]
[349875674,1737473469072,-500.0,0.00020273,2]
[349875675,1737473469082,-180.70750515,0.00020273,2]
[349875676,1737473469094,-319.29249485,0.00020273,2]
[349875677,1737473469104,-338.09750515,0.00020273,2]
[349875678,1737473469116,-161.90249485,0.00020273,2]
[349875679,1737473469126,-500.0,0.00020413,2]
[349875680,1737473469137,-500.0,0.00020413,2]
[349875681,1737473469147,-500.0,0.00020413,2]
[349875682,1737473469157,-500.0,0.00020414,2]
[349875683,1737473469168,-500.0,0.00020414,2]
[349875684,1737473469178,-500.0,0.00020547,2]
[349875685,1737473469189,-500.0,0.00020547,2]
[349875686,1737473469199,-500.0,0.00020547,2]
[349875687,1737473469209,-500.0,0.00020687,2]
[349875688,1737473469219,-500.0,0.00020687,2]
[349875689,1737473469229,-500.0,0.00020687,2]
[349875690,1737473469239,-500.0,0.00020688,2]
[349875691,1737473469249,-500.0,0.00020688,2]
[349875692,1737473469260,-500.0,0.00020821,2]
[349875693,1737473469270,-500.0,0.00020821,2]
[349875694,1737473469280,-500.0,0.00020961,2]
[349875695,1737473469293,-500.0,0.00020961,2]
[349875696,1737473469302,-500.0,0.00020962,2]
[349875697,1737473469312,-500.0,0.00020962,2]
[349875698,1737473469322,-500.0,0.00021095,2]
[349875699,1737473469332,-160.09750516,0.00021095,2]
[349875700,1737473469344,-339.90249484,0.00021095,2]
[349875701,1737473469354,-500.0,0.00021235,2]
[349875702,1737473469364,-500.0,0.00021235,2]
[349875703,1737473469374,-24.74194836,0.00021253,2]
[349875704,1737473469386,-324.686543,0.00021253,2]
[349875705,1737473469706,-357.60366245,0.00019178,2]
[349875706,1737473469718,-142.39633755,0.00019178,2]
[349875707,1737473469728,-167.062793,0.00019178,2]
[349875708,1737473469738,-500.0,0.00019178,2]
[349875709,1737473469748,-500.0,0.00019452,2]
[349875710,1737473469757,-500.0,0.00019452,2]
[349875711,1737473469770,-500.0,0.00019726,2]
[349875712,1737473469779,-500.0,0.00019726,2]
[349875713,1737473469792,-166.8928346,0.0002,2]
[349875714,1737473469801,-500.0,0.00020414,2]
[349875715,1737473469811,-503.47558965,0.00020414,2]
[349875716,1737473469821,-167.062793,0.00020547,2]
[349875717,1737473469831,-500.0,0.00020961,2]
[349875718,1737473469841,-981.79,0.00021178,2]
[349875719,1737473470027,-306.37,0.00021235,2]
[349875720,1737473470039,-919.57150864,0.00021253,2]
[349875721,1737473470049,-1176.0,0.00021253,2]
[349875722,1737473470060,-150.0,0.00021289,2]
[349875723,1737473470070,-187.08411737,0.00021369,2]
[349875724,1737473470086,-500.0,0.00021369,2]
[349875725,1737473470107,-54524.61067634,0.000215,15]
[349875726,1737473470120,-96175.38503362,0.000215,15]
[349875727,1737473470132,-3884.40202755,0.000215,15]
[349875728,1737473470156,-500.0,0.0002,2]
[349875729,1737473470165,-224077.95845544,0.000215,15]
[349875730,1737473470177,-804.73311017,0.000215,15]
[349875731,1737473470188,-344.82619273,0.000215,15]
[349875732,1737473470205,-500.0,0.00020414,2]
[349875733,1737473470215,-532.7469456,0.000215,15]
[349875734,1737473504688,206.63,0.00019915,30]
[349875738,1737474063912,168.47,0.00010137,2]
[349875744,1737474528735,200.65400455,0.00010947,2]
[349875757,1737474632463,-550.0,0.00015,2]
[349875758,1737474632476,-503.22,0.0001648,2]
[349875759,1737474632486,-600.0,0.00017,2]
[349875760,1737474632496,-174.0,0.00017875,2]
[349875761,1737474632506,-250.0,0.00018001,2]
[349875762,1737474632515,-233.11,0.00018078,2]
[349875763,1737474632525,-1000.0,0.00018156,2]
[349875764,1737474632535,-200.0,0.00018253,2]
[349875765,1737474632544,-1526.30307204,0.00018262,2]
[349875766,1737474632584,-22373.69692796,0.00018262,2]
[349875767,1737474632594,-183.31,0.000183,2]
[349875768,1737474632604,-150.0,0.00018329,2]
[349875769,1737474632613,-171.5,0.00018334,2]
[349875770,1737474632623,-247.75,0.00018355,2]
[349875771,1737474632632,-250.0,0.0001836,2]
[349875772,1737474632642,-405.62,0.00018446,2]
[349875773,1737474632652,-250.0,0.00018529,2]
[349875774,1737474632662,-503.22,0.00018744,2]
[349875775,1737474632671,-650.0,0.00019,2]
[349875776,1737474632681,-563.0732569,0.00019078,2]
[349875777,1737474632691,-913.71898176,0.00019078,2]
[349875778,1737474632700,-2219.3902,0.00019078,2]
[349875779,1737474632710,-783.1756,0.00019078,2]
[349875780,1737474632719,-5000.0,0.00019078,2]
[349875781,1737474632732,-2500.0,0.00019078,2]
[349875782,1737474632741,-405.62,0.00019129,2]
[349875783,1737474632751,-1000.0,0.00019167,2]
[349875784,1737474632760,-952.351,0.00019168,2]
[349875785,1737474632770,-169.091,0.00019168,2]
[349875786,1737474632779,-500.0,0.00019173,2]
[349875787,1737474632788,-546.77185126,0.00019178,2]
[349875788,1737474632797,-505.34419201,0.00019178,2]
[349875789,1737474632807,-507.80571988,0.00019178,2]
[349875790,1737474632817,-500.0,0.00019178,2]
[349875791,1737474632826,-507.57022789,0.00019178,2]
[349875792,1737474632836,-500.0,0.00019178,2]
[349875793,1737474632846,-500.0,0.00019178,2]
[349875794,1737474632856,-500.0,0.00019178,2]
[349875795,1737474632866,-500.0,0.00019178,2]
[349875796,1737474632875,-500.0,0.00019178,2]
[349875797,1737474632885,-500.0,0.00019178,2]
[349875798,1737474632894,-503.12403072,0.00019178,2]
[349875799,1737474632904,-500.0,0.00019178,2]
[349875800,1737474632913,-500.0,0.00019178,2]
[349875801,1737474632923,-843.91,0.00019178,2]
[349875802,1737474632932,-500.0,0.00019178,2]
[349875803,1737474632942,-386.06187454,0.00019178,2]
[349875804,1737474632951,-500.0,0.00019178,2]
[349875805,1737474632961,-500.0,0.00019178,2]
[349875806,1737474632972,-500.0,0.00019178,2]
[349875807,1737474632982,-500.0,0.00019178,2]
[349875808,1737474632992,-500.0,0.00019178,2]
[349875809,1737474633002,-500.0,0.00019178,2]
[349875810,1737474633011,-500.0,0.00019178,2]
[349875811,1737474633021,-500.0,0.00019178,2]
[349875812,1737474633030,-500.0,0.00019178,2]
[349875813,1737474633040,-500.0,0.00019178,2]
[349875814,1737474633050,-500.0,0.00019178,2]
[349875815,1737474633060,-500.37674687,0.00019178,2]
[349875816,1737474633070,-500.0,0.00019178,2]
[349875817,1737474633080,-505.73963452,0.00019178,2]
[349875818,1737474633090,-500.0,0.00019178,2]
[349875819,1737474633099,-500.0,0.00019178,2]
[349875820,1737474633109,-500.0,0.00019178,2]
[349875821,1737474633119,-500.0,0.00019178,2]
[349875822,1737474633128,-500.0,0.00019178,2]
[349875823,1737474633138,-500.0,0.00019178,2]
[349875824,1737474633147,-519.07100947,0.00019178,2]
[349875825,1737474633157,-500.0,0.00019178,2]
[349875826,1737474633166,-500.0,0.00019178,2]
[349875827,1737474633176,-500.0,0.00019178,2]
[349875828,1737474633185,-500.0,0.00019178,2]
[349875829,1737474633195,-306.45801456,0.00019178,2]
[349875830,1737474633204,-500.0,0.00019178,2]
[349875831,1737474633214,-500.0,0.00019178,2]
[349875832,1737474633225,-500.0,0.00019178,2]
[349875833,1737474633235,-500.0,0.00019178,2]
[349875834,1737474633244,-500.0,0.00019178,2]
[349875835,1737474633253,-500.0,0.00019178,2]
[349875836,1737474633263,-500.0,0.00019178,2]
[349875837,1737474633272,-500.0,0.00019178,2]
[349875839,1737474633282,-500.0,0.00019178,2]
[349875842,1737474633292,-500.0,0.00019178,2]
[349875843,1737474633302,-500.0,0.00019178,2]
[349875846,1737474633311,-581.00332079,0.00019178,2]
[349875849,1737474633320,-577.59166309,0.00019178,2]
[349875852,1737474633330,-500.0,0.00019178,2]
[349875855,1737474633339,-500.0,0.00019178,2]
[349875857,1737474633348,-500.0,0.00019178,2]
[349875859,1737474633357,-500.0,0.00019178,2]
[349875861,1737474633367,-500.0,0.00019178,2]
[349875863,1737474633376,-500.0,0.00019178,2]
[349875865,1737474633385,-500.0,0.00019178,2]
[349875867,1737474633399,-500.0,0.00019178,2]
[349875869,1737474633409,-500.0,0.00019178,2]
[349875871,1737474633418,-500.0,0.00019178,2]
[349875873,1737474633428,-501.15187847,0.00019178,2]
[349875875,1737474633438,-500.0,0.00019178,2]
[349875877,1737474633447,-500.0,0.00019178,2]
[349875879,1737474633456,-162.87776023,0.00019178,2]
[349875881,1737474633465,-500.0,0.00019178,2]
[349875883,1737474633477,-500.0,0.00019178,2]
[349875885,1737474633486,-500.0,0.00019178,2]
[349875887,1737474633495,-503.75334921,0.00019178,2]
[349875889,1737474633506,-500.0,0.00019178,2]
[349875891,1737474633515,-500.0,0.00019178,2]
[349875893,1737474633524,-500.0,0.00019178,2]
[349875895,1737474633534,-500.0,0.00019178,2]
[349875897,1737474633544,-500.0,0.00019178,2]
[349875899,1737474633554,-502.21512598,0.00019178,2]
[349875901,1737474633563,-500.0,0.00019178,2]
[349875903,1737474633573,-500.0,0.00019178,2]
[349875905,1737474633582,-500.0,0.00019178,2]
[349875907,1737474633592,-500.0,0.00019178,2]
[349875909,1737474633601,-500.0,0.00019178,2]
[349875911,1737474633611,-454.6425229,0.00019178,2]
[349875913,1737474633620,-500.0,0.00019178,2]
[349875915,1737474633632,-500.0,0.00019178,2]
[349875917,1737474633641,-500.0,0.00019178,2]
[349875919,1737474633651,-500.0,0.00019178,2]
[349875921,1737474633660,-500.0,0.00019178,2]
[349875923,1737474633670,-500.0,0.00019178,2]
[349875925,1737474633680,-500.0,0.00019178,2]
[349875927,1737474633689,-24.79432151,0.00019178,2]
[349875929,1737474633706,-475.20567849,0.00019178,2]
[349875930,1737474633715,-500.0,0.00019178,2]
[349875931,1737474633723,-500.0,0.00019178,2]
[349875932,1737474633732,-500.0,0.00019178,2]
[349875933,1737474633742,-500.0,0.00019178,2]
[349875934,1737474633750,-500.0,0.00019178,2]
[349875935,1737474633759,-500.0,0.00019178,2]
[349875936,1737474633768,-500.0,0.00019178,2]
[349875937,1737474633777,-524.82,0.00019178,2]
[349875938,1737474633786,-500.0,0.00019178,2]
[349875939,1737474633795,-500.0,0.00019178,2]
[349875940,1737474633803,-500.0,0.00019178,2]
[349875941,1737474633813,-500.0,0.00019178,2]
[349875943,1737474633822,-500.0,0.00019178,2]
[349875945,1737474633831,-500.0,0.00019178,2]
[349875947,1737474633840,-500.0,0.00019178,2]
[349875949,1737474633850,-500.0,0.00019178,2]
[349875951,1737474633859,-500.0,0.00019178,2]
[349875953,1737474633869,-500.0,0.00019178,2]
[349875955,1737474633879,-500.0,0.00019178,2]
[349875957,1737474633888,-500.0,0.00019178,2]
[349875959,1737474633898,-500.0,0.00019178,2]
[349875961,1737474633907,-500.0,0.00019178,2]
[349875963,1737474633916,-500.0,0.00019178,2]
[349875965,1737474633925,-500.0,0.00019178,2]
[349875967,1737474633935,-430.71917023,0.00019178,2]
[349875969,1737474633944,-500.0,0.00019178,2]
[349875971,1737474633954,-500.0,0.00019178,2]
[349875973,1737474633963,-503.39585632,0.00019178,2]
[349875975,1737474633973,-500.0,0.00019178,2]
[349875977,1737474633983,-500.0,0.00019178,2]
[349875979,1737474633993,-500.0,0.00019178,2]
[349875981,1737474634002,-500.0,0.00019178,2]
[349875983,1737474634012,-500.0,0.00019178,2]
[349875985,1737474634021,-500.0,0.00019178,2]
[349875987,1737474634031,-532.28046026,0.00019178,2]
[349875989,1737474634040,-500.0,0.00019178,2]
[349875991,1737474634050,-500.0,0.00019178,2]
[349875992,1737474634059,-500.0,0.00019178,2]
[349875994,1737474634068,-347.77100814,0.00019178,2]
[349875996,1737474634078,-556.97,0.00019178,2]
[349875998,1737474634087,-500.0,0.00019178,2]
[349876000,1737474634096,-500.0,0.00019178,2]
[349876002,1737474634106,-500.0,0.00019178,2]
[349876004,1737474634115,-500.0,0.00019178,2]
[349876006,1737474634125,-500.0,0.00019178,2]
[349876035,1737474634402,-500.0,0.00019178,2]
[349876037,1737474634413,-500.0,0.00019178,2]
[349876039,1737474634424,-500.0,0.00019178,2]
[349876042,1737474634434,-502.33129292,0.00019178,2]
[349876044,1737474634444,-500.0,0.00019178,2]
[349876045,1737474634454,-500.0,0.00019178,2]
[349876047,1737474634464,-500.0,0.00019178,2]
[349876049,1737474634475,-500.0,0.00019178,2]
[349876051,1737474634485,-532.80047708,0.00019178,2]
[349876054,1737474634495,-501.96800706,0.00019178,2]
[349876056,1737474634504,-231.73335319,0.00019178,2]
[349876058,1737474634514,-500.0,0.00019178,2]
[349876060,1737474634524,-500.0,0.00019178,2]
[349876061,1737474634534,-500.0,0.00019178,2]
[349876064,1737474634544,-500.0,0.00019178,2]
[349876066,1737474634553,-153.17351686,0.00019178,2]
[349876067,1737474634562,-500.0,0.00019178,2]
[349876070,1737474634572,-500.0,0.00019178,2]
[349876071,1737474634582,-500.0,0.00019178,2]
[349876073,1737474634592,-500.0,0.00019178,2]
[349876075,1737474634601,-500.0,0.00019178,2]
[349876077,1737474634611,-500.0,0.00019178,2]
[349876079,1737474634621,-500.0,0.00019178,2]
[349876081,1737474634631,-500.0,0.00019178,2]
[349876083,1737474634640,-500.0,0.00019178,2]
[349876085,1737474634650,-500.0,0.00019178,2]
[349876087,1737474634659,-544.30377563,0.00019178,2]
[349876089,1737474634669,-500.0,0.00019178,2]
[349876091,1737474634678,-500.0,0.00019178,2]
[349876093,1737474634688,-500.0,0.00019178,2]
[349876095,1737474634698,-500.0,0.00019178,2]
[349876097,1737474634707,-500.0,0.00019178,2]
[349876099,1737474634716,-500.0,0.00019178,2]
[349876101,1737474634726,-500.0,0.00019178,2]
[349876103,1737474634735,-500.0,0.00019178,2]
[349876104,1737474634745,-500.0,0.00019178,2]
[349876105,1737474634755,-500.0,0.00019178,2]
[349876106,1737474634764,-500.0,0.00019178,2]
[349876107,1737474634773,-500.0,0.00019178,2]
[349876108,1737474634783,-859.73,0.00019178,2]
[349876109,1737474634792,-500.0,0.00019178,2]
[349876110,1737474634802,-500.0,0.00019178,2]
[349876111,1737474634811,-500.0,0.00019178,2]
[349876112,1737474634821,-500.0,0.00019178,2]
[349876113,1737474634830,-500.0,0.00019178,2]
[349876114,1737474634840,-500.0,0.00019178,2]
[349876115,1737474634849,-500.0,0.00019178,2]
[349876116,1737474634858,-500.0,0.00019178,2]
[349876117,1737474634868,-500.0,0.00019178,2]
[349876118,1737474634877,-500.0,0.00019178,2]
[349876119,1737474634887,-500.0,0.00019178,2]